[Event "Titled Tuesday Blitz October 18 Late 2022"]
[White "Bongo Akanga Ndjila, Barthelemy"]
[Black "Alexikov, Alexander"]
[WhiteFideId "10609431"]
[BlackFideId "14103958"]
[WhiteElo "1768"]
[BlackElo "2222"]
[Result "1-0"]
[Round "11"]
[TimeControl "180+1"]
[Date "2022.10.19"]
[WhiteClock "0:00:05"]
[BlackClock "0:00:01"]

1. d4 {[%clk 0:03:00]}  Nf6 {[%clk 0:02:59]} 2. c4 {[%clk 0:02:59]}  g6 {[%clk 0:02:59]} 3. Nc3 {[%clk 0:02:59]}  Bg7 {[%clk 0:03:00]} 4. e4 {[%clk 0:02:59]}  d6 {[%clk 0:03:00]} 5. Be2 {[%clk 0:03:00]}  O-O {[%clk 0:03:00]} 6. Nf3 {[%clk 0:03:00]}  e5 {[%clk 0:02:58]} 7. O-O {[%clk 0:02:59]}  Nbd7 {[%clk 0:02:58]} 8. d5 {[%clk 0:02:58]}  a5 {[%clk 0:02:55]} 9. Qc2 {[%clk 0:02:54]}  c6 {[%clk 0:02:45]} 10. dxc6 {[%clk 0:02:50]}  bxc6 {[%clk 0:02:43]} 11. Rd1 {[%clk 0:02:51]}  Qe7 {[%clk 0:02:40]} 12. h3 {[%clk 0:02:44]}  Nc5 {[%clk 0:02:30]} 13. Be3 {[%clk 0:02:36]}  Ne6 {[%clk 0:02:28]} 14. Qd2 {[%clk 0:02:26]}  Rd8 {[%clk 0:02:23]} 15. Bh6 {[%clk 0:02:24]}  Bh8 {[%clk 0:02:07]} 16. Ng5 {[%clk 0:02:22]}  Nd4 {[%clk 0:02:04]} 17. Rf1 {[%clk 0:02:17]}  Nd7 {[%clk 0:01:51]} 18. f4 {[%clk 0:02:11]}  f6 {[%clk 0:01:50]} 19. Nf3 {[%clk 0:02:07]}  Ne6 {[%clk 0:01:41]} 20. Rad1 {[%clk 0:02:03]}  Ndc5 {[%clk 0:01:39]} 21. f5 {[%clk 0:01:55]}  Nc7 {[%clk 0:01:35]} 22. g4 {[%clk 0:01:36]}  Bg7 {[%clk 0:01:23]} 23. b3 {[%clk 0:01:26]}  g5 {[%clk 0:01:10]} 24. Bxg7 {[%clk 0:01:25]}  Qxg7 {[%clk 0:01:06]} 25. Qe3 {[%clk 0:01:16]}  N7a6 {[%clk 0:00:58]} 26. Rd2 {[%clk 0:00:59]}  Ra7 {[%clk 0:00:55]} 27. Rfd1 {[%clk 0:00:59]}  Rad7 {[%clk 0:00:54]} 28. Ne1 {[%clk 0:00:49]}  h6 {[%clk 0:00:52]} 29. Nd3 {[%clk 0:00:49]}  Nxd3 {[%clk 0:00:49]} 30. Rxd3 {[%clk 0:00:48]}  Nb4 {[%clk 0:00:46]} 31. R3d2 {[%clk 0:00:46]}  Bb7 {[%clk 0:00:33]} 32. Qb6 {[%clk 0:00:44]}  Na6 {[%clk 0:00:32]} 33. Qxa5 {[%clk 0:00:43]}  Nc5 {[%clk 0:00:30]} 34. b4 {[%clk 0:00:35]}  Ra8 {[%clk 0:00:29]} 35. Qb6 {[%clk 0:00:27]}  Ra6 {[%clk 0:00:26]} 36. Qxa6 {[%clk 0:00:24]}  Nxa6 {[%clk 0:00:25]} 37. b5 {[%clk 0:00:24]}  Nc5 {[%clk 0:00:24]} 38. Rxd6 {[%clk 0:00:20]}  Qe7 {[%clk 0:00:19]} 39. Rxd7 {[%clk 0:00:19]}  Nxd7 {[%clk 0:00:18]} 40. bxc6 {[%clk 0:00:18]}  Bxc6 {[%clk 0:00:18]} 41. Nd5 {[%clk 0:00:18]}  Qc5+ {[%clk 0:00:17]} 42. Kg2 {[%clk 0:00:17]}  Kf7 {[%clk 0:00:13]} 43. Rd2 {[%clk 0:00:13]}  Qa5 {[%clk 0:00:11]} 44. Rd1 {[%clk 0:00:13]}  Qxa2 {[%clk 0:00:10]} 45. Kf3 {[%clk 0:00:13]}  Nc5 {[%clk 0:00:05]} 46. Nc3 {[%clk 0:00:10]}  Qb3 {[%clk 0:00:05]} 47. Rc1 {[%clk 0:00:09]}  Qb2 {[%clk 0:00:04]} 48. Na2 {[%clk 0:00:06]}  Qxa2 {[%clk 0:00:03]} 49. Rd1 {[%clk 0:00:07]}  Qb3+ {[%clk 0:00:03]} 50. Kf2 {[%clk 0:00:06]}  Bxe4 {[%clk 0:00:03]} 51. Ke1 {[%clk 0:00:06]}  Nd3+ {[%clk 0:00:01]} 52. Bxd3 {[%clk 0:00:06]}  Bxd3 {[%clk 0:00:01]} 53. Kd2 {[%clk 0:00:06]}  e4 {[%clk 0:00:01]} 54. Rc1 {[%clk 0:00:06]}  Qb4+ {[%clk 0:00:01]} 55. Ke3 {[%clk 0:00:05]} 1-0


[Site "https://www.chess.com"]

[Event "Titled Tuesday Blitz October 18 Late 2022"]
[White "Brown, Andrew"]
[Black "Gonzalez Vega, Alejandro"]
[WhiteFideId "3206513"]
[BlackFideId "3510042"]
[WhiteElo "2245"]
[BlackElo "2268"]
[Result "0-1"]
[Round "11"]
[TimeControl "180+1"]
[Date "2022.10.19"]
[WhiteClock "0:00:09"]
[BlackClock "0:00:14"]

1. d4 {[%clk 0:02:00]}  d5 {[%clk 0:02:58]} 2. c4 {[%clk 0:01:59]}  e6 {[%clk 0:02:58]} 3. Nc3 {[%clk 0:01:58]}  Nf6 {[%clk 0:02:57]} 4. Nf3 {[%clk 0:01:58]}  Bb4 {[%clk 0:02:56]} 5. Bg5 {[%clk 0:01:58]}  Nbd7 {[%clk 0:02:56]} 6. e3 {[%clk 0:01:58]}  c5 {[%clk 0:02:56]} 7. cxd5 {[%clk 0:01:58]}  exd5 {[%clk 0:02:55]} 8. Bd3 {[%clk 0:01:58]}  Qa5 {[%clk 0:02:55]} 9. O-O {[%clk 0:01:57]}  c4 {[%clk 0:02:55]} 10. Bf5 {[%clk 0:01:57]}  h6 {[%clk 0:02:55]} 11. Bh4 {[%clk 0:01:50]}  Bxc3 {[%clk 0:02:55]} 12. bxc3 {[%clk 0:01:50]}  O-O {[%clk 0:02:49]} 13. Qc2 {[%clk 0:01:42]}  Re8 {[%clk 0:02:47]} 14. a4 {[%clk 0:01:36]}  Ne4 {[%clk 0:02:41]} 15. Nd2 {[%clk 0:01:06]}  Ndf6 {[%clk 0:02:19]} 16. Nxe4 {[%clk 0:00:48]}  Nxe4 {[%clk 0:02:17]} 17. Bxc8 {[%clk 0:00:43]}  Raxc8 {[%clk 0:02:16]} 18. Rfc1 {[%clk 0:00:39]}  Rc6 {[%clk 0:02:11]} 19. Rab1 {[%clk 0:00:36]}  Rb6 {[%clk 0:01:47]} 20. Rxb6 {[%clk 0:00:36]}  Qxb6 {[%clk 0:01:47]} 21. f3 {[%clk 0:00:33]}  Nd6 {[%clk 0:01:45]} 22. Rb1 {[%clk 0:00:33]}  Qc6 {[%clk 0:01:44]} 23. a5 {[%clk 0:00:27]}  Rxe3 {[%clk 0:01:38]} 24. Bg3 {[%clk 0:00:14]}  Nb5 {[%clk 0:01:30]} 25. Qd2 {[%clk 0:00:12]}  Rd3 {[%clk 0:01:15]} 26. Qf4 {[%clk 0:00:07]}  Rxc3 {[%clk 0:01:06]} 27. Re1 {[%clk 0:00:02]}  Rd3 {[%clk 0:01:01]} 28. h4 {[%clk 0:00:02]}  Rxd4 {[%clk 0:00:57]} 29. Qf5 {[%clk 0:00:02]}  a6 {[%clk 0:00:18]} 30. Re7 {[%clk 0:00:01]}  Qf6 {[%clk 0:00:16]} 31. Qxf6 {[%clk 0:00:01]}  gxf6 {[%clk 0:00:16]} 32. Rxb7 {[%clk 0:00:02]}  c3 {[%clk 0:00:16]} 33. Bf2 {[%clk 0:00:02]}  Rc4 {[%clk 0:00:16]} 34. Be3 {[%clk 0:00:01]}  d4 {[%clk 0:00:15]} 35. Bxh6 {[%clk 0:00:02]}  d3 {[%clk 0:00:15]} 36. Rd7 {[%clk 0:00:02]}  d2 {[%clk 0:00:14]} 37. Bxd2 {[%clk 0:00:01]}  cxd2 {[%clk 0:00:15]} 38. Rxd2 {[%clk 0:00:02]}  Ra4 {[%clk 0:00:15]} 39. Rd8+ {[%clk 0:00:02]}  Kg7 {[%clk 0:00:15]} 40. Rb8 {[%clk 0:00:03]}  Rxa5 {[%clk 0:00:15]} 41. g4 {[%clk 0:00:03]}  Ra2 {[%clk 0:00:14]} 42. Rb6 {[%clk 0:00:03]}  Nd4 {[%clk 0:00:14]} 43. f4 {[%clk 0:00:03]}  Nf3+ {[%clk 0:00:14]} 44. Kf1 {[%clk 0:00:03]}  Nxh4 {[%clk 0:00:15]} 45. g5 {[%clk 0:00:01]}  fxg5 {[%clk 0:00:14]} 46. fxg5 {[%clk 0:00:02]}  Ng6 {[%clk 0:00:15]} 47. Rc6 {[%clk 0:00:02]}  a5 {[%clk 0:00:15]} 48. Rd6 {[%clk 0:00:02]}  Ne5 {[%clk 0:00:15]} 49. Ra6 {[%clk 0:00:03]}  a4 {[%clk 0:00:14]} 50. Ke1 {[%clk 0:00:03]}  a3 {[%clk 0:00:14]} 51. Kd1 {[%clk 0:00:03]}  Nc4 {[%clk 0:00:13]} 52. Kc1 {[%clk 0:00:03]}  Ne3 {[%clk 0:00:12]} 53. Rc6 {[%clk 0:00:04]}  Rc2+ {[%clk 0:00:11]} 54. Rxc2 {[%clk 0:00:03]}  Nxc2 {[%clk 0:00:11]} 55. Kxc2 {[%clk 0:00:04]}  Kg6 {[%clk 0:00:12]} 56. Kb3 {[%clk 0:00:05]}  Kxg5 {[%clk 0:00:13]} 57. Kxa3 {[%clk 0:00:06]}  f5 {[%clk 0:00:13]} 58. Kb2 {[%clk 0:00:07]}  Kf4 {[%clk 0:00:14]} 59. Kc1 {[%clk 0:00:08]}  Ke3 {[%clk 0:00:14]} 60. Kd1 {[%clk 0:00:09]}  Kf2 {[%clk 0:00:14]} 61. Kd2 {[%clk 0:00:09]}  f4 {[%clk 0:00:14]} 0-1


[Site "https://www.chess.com"]

[Event "Titled Tuesday Blitz October 18 Late 2022"]
[White "Chan, Kim Yew"]
[Black "Ibadov, Dashgyn"]
[WhiteFideId "5717981"]
[BlackFideId "24107514"]
[WhiteElo "2206"]
[BlackElo "2208"]
[Result "1-0"]
[Round "11"]
[TimeControl "180+1"]
[Date "2022.10.19"]
[WhiteClock "0:00:17"]
[BlackClock "0:00:01"]

1. Nf3 {[%clk 0:03:00]}  d5 {[%clk 0:02:59]} 2. e3 {[%clk 0:02:56]}  Nf6 {[%clk 0:02:58]} 3. c4 {[%clk 0:02:57]}  c6 {[%clk 0:02:54]} 4. Nc3 {[%clk 0:02:56]}  g6 {[%clk 0:02:51]} 5. d4 {[%clk 0:02:51]}  Bg7 {[%clk 0:02:50]} 6. Be2 {[%clk 0:02:52]}  O-O {[%clk 0:02:50]} 7. O-O {[%clk 0:02:52]}  Bg4 {[%clk 0:02:46]} 8. cxd5 {[%clk 0:02:42]}  Nxd5 {[%clk 0:02:42]} 9. h3 {[%clk 0:02:23]}  Bf5 {[%clk 0:02:29]} 10. Qb3 {[%clk 0:01:41]}  Nxc3 {[%clk 0:02:12]} 11. bxc3 {[%clk 0:01:42]}  b6 {[%clk 0:01:53]} 12. a4 {[%clk 0:01:31]}  Nd7 {[%clk 0:01:48]} 13. a5 {[%clk 0:01:30]}  c5 {[%clk 0:01:32]} 14. Nd2 {[%clk 0:01:01]}  e5 {[%clk 0:00:38]} 15. e4 {[%clk 0:00:56]}  Bxh3 {[%clk 0:00:38]} 16. d5 {[%clk 0:00:42]}  Qg5 {[%clk 0:00:25]} 17. Bf3 {[%clk 0:00:40]}  Bg4 {[%clk 0:00:25]} 18. Nc4 {[%clk 0:00:40]}  Qh5 {[%clk 0:00:26]} 19. Bxg4 {[%clk 0:00:36]}  Qxg4 {[%clk 0:00:27]} 20. axb6 {[%clk 0:00:35]}  axb6 {[%clk 0:00:26]} 21. f3 {[%clk 0:00:30]}  Qg3 {[%clk 0:00:24]} 22. Rxa8 {[%clk 0:00:30]}  Rxa8 {[%clk 0:00:24]} 23. Nxb6 {[%clk 0:00:21]}  Rb8 {[%clk 0:00:23]} 24. Qa4 {[%clk 0:00:22]}  Nxb6 {[%clk 0:00:16]} 25. Qa7 {[%clk 0:00:22]}  Ra8 {[%clk 0:00:08]} 26. Qxb6 {[%clk 0:00:23]}  h5 {[%clk 0:00:07]} 27. Be3 {[%clk 0:00:21]}  Ra2 {[%clk 0:00:07]} 28. Bf2 {[%clk 0:00:20]}  Qf4 {[%clk 0:00:04]} 29. Qxc5 {[%clk 0:00:19]}  h4 {[%clk 0:00:05]} 30. Qe3 {[%clk 0:00:19]}  Qxe3 {[%clk 0:00:01]} 31. Bxe3 {[%clk 0:00:20]}  Rc2 {[%clk 0:00:01]} 32. Bf2 {[%clk 0:00:17]}  Rxc3 {[%clk 0:00:01]} 33. Bxh4 {[%clk 0:00:17]} 1-0


[Site "https://www.chess.com"]

[Event "Titled Tuesday Blitz October 18 Late 2022"]
[White "Daeschler, Florian"]
[Black "Saravana, Krishnan P."]
[WhiteFideId "20678193"]
[BlackFideId "5018382"]
[WhiteElo "2187"]
[BlackElo "2155"]
[Result "0-1"]
[Round "11"]
[TimeControl "180+1"]
[Date "2022.10.19"]
[WhiteClock "0:02:13"]
[BlackClock "0:01:13"]

1. e4 {[%clk 0:03:00]}  c6 {[%clk 0:02:58]} 2. Nf3 {[%clk 0:02:59]}  d5 {[%clk 0:02:58]} 3. Nc3 {[%clk 0:02:58]}  Bg4 {[%clk 0:02:55]} 4. h3 {[%clk 0:02:58]}  Bxf3 {[%clk 0:02:55]} 5. Qxf3 {[%clk 0:02:59]}  e6 {[%clk 0:02:55]} 6. d4 {[%clk 0:02:59]}  dxe4 {[%clk 0:02:50]} 7. Nxe4 {[%clk 0:03:00]}  Nd7 {[%clk 0:02:49]} 8. Bd3 {[%clk 0:02:59]}  Ngf6 {[%clk 0:02:48]} 9. Bf4 {[%clk 0:02:56]}  Nxe4 {[%clk 0:02:47]} 10. Qxe4 {[%clk 0:02:56]}  Nf6 {[%clk 0:02:46]} 11. Qe2 {[%clk 0:02:56]}  Qxd4 {[%clk 0:02:45]} 12. Be5 {[%clk 0:02:56]}  Qb4+ {[%clk 0:02:37]} 13. Bc3 {[%clk 0:02:55]}  Qb6 {[%clk 0:02:34]} 14. O-O-O {[%clk 0:02:54]}  Bb4 {[%clk 0:02:33]} 15. Bxf6 {[%clk 0:02:50]}  gxf6 {[%clk 0:02:32]} 16. Qh5 {[%clk 0:02:46]}  Qc5 {[%clk 0:02:27]} 17. Qh4 {[%clk 0:02:42]}  Qg5+ {[%clk 0:02:25]} 18. Qxg5 {[%clk 0:02:41]}  fxg5 {[%clk 0:02:25]} 19. c3 {[%clk 0:02:38]}  Bd6 {[%clk 0:02:24]} 20. Be4 {[%clk 0:02:38]}  Ke7 {[%clk 0:02:24]} 21. Kc2 {[%clk 0:02:38]}  f5 {[%clk 0:02:22]} 22. Bf3 {[%clk 0:02:38]}  Rad8 {[%clk 0:02:20]} 23. Rhe1 {[%clk 0:02:37]}  h5 {[%clk 0:02:19]} 24. Be2 {[%clk 0:02:31]}  b5 {[%clk 0:02:05]} 25. c4 {[%clk 0:02:28]}  a6 {[%clk 0:02:05]} 26. cxb5 {[%clk 0:02:28]}  axb5 {[%clk 0:02:04]} 27. a3 {[%clk 0:02:27]}  Kf6 {[%clk 0:02:03]} 28. Kb3 {[%clk 0:02:27]}  g4 {[%clk 0:02:00]} 29. h4 {[%clk 0:02:22]}  Bc5 {[%clk 0:01:58]} 30. f4 {[%clk 0:02:21]}  Bf2 {[%clk 0:01:52]} 31. Rf1 {[%clk 0:02:21]}  Rxd1 {[%clk 0:01:50]} 32. Rxd1 {[%clk 0:02:21]}  Bxh4 {[%clk 0:01:49]} 33. Rd6 {[%clk 0:02:22]}  Rc8 {[%clk 0:01:42]} 34. Kb4 {[%clk 0:02:16]}  Kf7 {[%clk 0:01:31]} 35. Rd7+ {[%clk 0:02:16]}  Be7+ {[%clk 0:01:29]} 36. Kc3 {[%clk 0:02:16]}  h4 {[%clk 0:01:26]} 37. Kd4 {[%clk 0:02:14]}  h3 {[%clk 0:01:24]} 38. gxh3 {[%clk 0:02:13]}  gxh3 {[%clk 0:01:23]} 39. Bf3 {[%clk 0:02:14]}  h2 {[%clk 0:01:21]} 40. Ke5 {[%clk 0:02:14]}  Rg8 {[%clk 0:01:18]} 41. Rd2 {[%clk 0:02:13]}  Bf6+ {[%clk 0:01:13]} 0-1


[Site "https://www.chess.com"]

[Event "Titled Tuesday Blitz October 18 Late 2022"]
[White "De Souza, Cristiano Gomes"]
[Black "Burke, Paul"]
[WhiteFideId "2151758"]
[BlackFideId "2605767"]
[WhiteElo "2068"]
[BlackElo "1908"]
[Result "1/2-1/2"]
[Round "11"]
[TimeControl "180+1"]
[Date "2022.10.19"]
[WhiteClock "0:01:17"]
[BlackClock "0:00:48"]

1. d4 {[%clk 0:03:00]}  Nf6 {[%clk 0:02:58]} 2. c4 {[%clk 0:03:00]}  c5 {[%clk 0:02:58]} 3. d5 {[%clk 0:03:00]}  Ne4 {[%clk 0:02:58]} 4. Nd2 {[%clk 0:02:59]}  Qa5 {[%clk 0:02:57]} 5. f3 {[%clk 0:02:57]}  Nf6 {[%clk 0:02:55]} 6. e4 {[%clk 0:02:56]}  d6 {[%clk 0:02:55]} 7. b3 {[%clk 0:02:53]}  g6 {[%clk 0:02:54]} 8. Bb2 {[%clk 0:02:53]}  Bg7 {[%clk 0:02:54]} 9. Bd3 {[%clk 0:02:52]}  O-O {[%clk 0:02:53]} 10. Ne2 {[%clk 0:02:51]}  e5 {[%clk 0:02:45]} 11. Bc3 {[%clk 0:02:48]}  Qd8 {[%clk 0:02:43]} 12. O-O {[%clk 0:02:47]}  Na6 {[%clk 0:02:40]} 13. a3 {[%clk 0:02:46]}  Bd7 {[%clk 0:02:39]} 14. b4 {[%clk 0:02:45]}  b6 {[%clk 0:02:39]} 15. b5 {[%clk 0:02:44]}  Nc7 {[%clk 0:02:38]} 16. a4 {[%clk 0:02:45]}  Qe7 {[%clk 0:02:36]} 17. Ra3 {[%clk 0:02:44]}  a6 {[%clk 0:02:19]} 18. Qa1 {[%clk 0:02:36]}  axb5 {[%clk 0:02:16]} 19. axb5 {[%clk 0:02:36]}  Rxa3 {[%clk 0:02:13]} 20. Qxa3 {[%clk 0:02:37]}  Ra8 {[%clk 0:02:13]} 21. Qb2 {[%clk 0:02:37]}  Qd8 {[%clk 0:02:07]} 22. Ra1 {[%clk 0:02:37]}  Rxa1+ {[%clk 0:02:04]} 23. Qxa1 {[%clk 0:02:37]}  Qa8 {[%clk 0:02:03]} 24. Nb3 {[%clk 0:02:33]}  Qxa1+ {[%clk 0:02:00]} 25. Nxa1 {[%clk 0:02:32]}  Nh5 {[%clk 0:01:57]} 26. Bd2 {[%clk 0:02:28]}  f5 {[%clk 0:01:40]} 27. g3 {[%clk 0:02:22]}  fxe4 {[%clk 0:01:35]} 28. fxe4 {[%clk 0:02:22]}  Nf6 {[%clk 0:01:34]} 29. Nc2 {[%clk 0:02:19]}  Bg4 {[%clk 0:01:28]} 30. Kf2 {[%clk 0:02:16]}  Bxe2 {[%clk 0:01:27]} 31. Kxe2 {[%clk 0:02:15]}  Ng4 {[%clk 0:01:24]} 32. h3 {[%clk 0:02:12]}  Nf6 {[%clk 0:01:24]} 33. Ne3 {[%clk 0:02:10]}  Nd7 {[%clk 0:01:19]} 34. Kf2 {[%clk 0:02:07]}  Nf6 {[%clk 0:01:19]} 35. Ng4 {[%clk 0:02:04]}  Nxg4+ {[%clk 0:01:17]} 36. hxg4 {[%clk 0:02:04]}  Ne8 {[%clk 0:01:15]} 37. g5 {[%clk 0:02:03]}  Nc7 {[%clk 0:01:14]} 38. Be2 {[%clk 0:02:01]}  Kf8 {[%clk 0:01:11]} 39. Bg4 {[%clk 0:02:01]}  Ke7 {[%clk 0:01:10]} 40. Be3 {[%clk 0:01:55]}  Bf8 {[%clk 0:01:09]} 41. Kf3 {[%clk 0:01:54]}  Bg7 {[%clk 0:01:09]} 42. Bh3 {[%clk 0:01:53]}  Bf8 {[%clk 0:01:08]} 43. Bc8 {[%clk 0:01:53]}  Bg7 {[%clk 0:01:07]} 44. Bb7 {[%clk 0:01:52]}  Bf8 {[%clk 0:01:06]} 45. Bc6 {[%clk 0:01:53]}  Bg7 {[%clk 0:01:05]} 46. Bd2 {[%clk 0:01:48]}  Kd8 {[%clk 0:00:52]} 47. Bb7 {[%clk 0:01:39]}  Ne8 {[%clk 0:00:49]} 48. Bc6 {[%clk 0:01:29]}  Nc7 {[%clk 0:00:49]} 49. Be3 {[%clk 0:01:23]}  Bf8 {[%clk 0:00:48]} 50. Kg4 {[%clk 0:01:21]}  Bg7 {[%clk 0:00:48]} 51. Bb7 {[%clk 0:01:20]}  Bf8 {[%clk 0:00:47]} 52. Bc6 {[%clk 0:01:19]}  Bg7 {[%clk 0:00:48]} 53. Bb7 {[%clk 0:01:19]}  Bf8 {[%clk 0:00:48]} 54. Bc6 {[%clk 0:01:17]} 1/2-1/2


[Site "https://www.chess.com"]

[Event "Titled Tuesday Blitz October 18 Late 2022"]
[White "Deac, Bogdan-Daniel"]
[Black "Bluebaum, Matthias"]
[WhiteFideId "1226380"]
[BlackFideId "24651516"]
[WhiteElo "2648"]
[BlackElo "2633"]
[Result "0-1"]
[Round "11"]
[TimeControl "180+1"]
[Date "2022.10.18"]
[WhiteClock "0:00:05"]
[BlackClock "0:00:31"]

1. d4 {[%clk 0:03:00]}  Nf6 {[%clk 0:02:59]} 2. c4 {[%clk 0:03:01]}  e6 {[%clk 0:02:59]} 3. g3 {[%clk 0:03:02]}  d5 {[%clk 0:02:59]} 4. Bg2 {[%clk 0:03:02]}  Bb4+ {[%clk 0:02:59]} 5. Nd2 {[%clk 0:03:01]}  O-O {[%clk 0:02:55]} 6. Nf3 {[%clk 0:03:02]}  c5 {[%clk 0:02:56]} 7. cxd5 {[%clk 0:02:55]}  exd5 {[%clk 0:02:57]} 8. dxc5 {[%clk 0:02:53]}  Bxc5 {[%clk 0:02:56]} 9. O-O {[%clk 0:02:53]}  Nc6 {[%clk 0:02:57]} 10. a3 {[%clk 0:02:49]}  a5 {[%clk 0:02:54]} 11. b3 {[%clk 0:02:48]}  Ne4 {[%clk 0:02:32]} 12. Bb2 {[%clk 0:02:47]}  Qb6 {[%clk 0:02:23]} 13. Nxe4 {[%clk 0:01:24]}  dxe4 {[%clk 0:02:24]} 14. Ng5 {[%clk 0:01:25]}  e3 {[%clk 0:02:16]} 15. Qd3 {[%clk 0:01:23]}  exf2+ {[%clk 0:02:02]} 16. Kh1 {[%clk 0:01:22]}  g6 {[%clk 0:02:02]} 17. Rac1 {[%clk 0:00:55]}  Bf5 {[%clk 0:01:45]} 18. e4 {[%clk 0:00:29]}  Rad8 {[%clk 0:01:18]} 19. Qc2 {[%clk 0:00:29]}  Be3 {[%clk 0:01:18]} 20. exf5 {[%clk 0:00:17]}  Bxg5 {[%clk 0:01:18]} 21. fxg6 {[%clk 0:00:18]}  hxg6 {[%clk 0:01:18]} 22. Qc3 {[%clk 0:00:16]}  Nd4 {[%clk 0:00:41]} 23. Rcd1 {[%clk 0:00:14]}  Bf6 {[%clk 0:00:41]} 24. b4 {[%clk 0:00:10]}  axb4 {[%clk 0:00:39]} 25. axb4 {[%clk 0:00:11]}  Bg7 {[%clk 0:00:38]} 26. Qc4 {[%clk 0:00:11]}  Nf5 {[%clk 0:00:34]} 27. Rxd8 {[%clk 0:00:09]}  Rxd8 {[%clk 0:00:33]} 28. Bxg7 {[%clk 0:00:10]}  Kxg7 {[%clk 0:00:34]} 29. Qc3+ {[%clk 0:00:08]}  Kg8 {[%clk 0:00:33]} 30. Bf3 {[%clk 0:00:05]}  Ne3 {[%clk 0:00:30]} 31. Rxf2 {[%clk 0:00:05]}  Nd1 {[%clk 0:00:31]} 0-1


[Site "https://www.chess.com"]

[Event "Titled Tuesday Blitz October 18 Late 2022"]
[White "Decuigniere, Tom"]
[Black "Jaracz, Pawel"]
[WhiteFideId "26093820"]
[BlackFideId "1102222"]
[WhiteElo "2223"]
[BlackElo "2459"]
[Result "0-1"]
[Round "11"]
[TimeControl "180+1"]
[Date "2022.10.18"]
[WhiteClock "0:00:02"]
[BlackClock "0:00:36"]

1. c4 {[%clk 0:03:00]}  c5 {[%clk 0:02:58]} 2. Nc3 {[%clk 0:03:00]}  g6 {[%clk 0:02:59]} 3. g3 {[%clk 0:03:00]}  Bg7 {[%clk 0:02:59]} 4. Bg2 {[%clk 0:03:01]}  h5 {[%clk 0:02:57]} 5. h4 {[%clk 0:02:55]}  Nh6 {[%clk 0:02:56]} 6. e4 {[%clk 0:02:52]}  Nc6 {[%clk 0:02:55]} 7. d3 {[%clk 0:02:52]}  Ng4 {[%clk 0:02:55]} 8. f3 {[%clk 0:02:49]}  Nf6 {[%clk 0:02:53]} 9. Nge2 {[%clk 0:02:49]}  d6 {[%clk 0:02:54]} 10. Be3 {[%clk 0:02:48]}  O-O {[%clk 0:02:45]} 11. d4 {[%clk 0:02:46]}  b6 {[%clk 0:02:38]} 12. O-O {[%clk 0:02:44]}  e5 {[%clk 0:02:29]} 13. dxe5 {[%clk 0:02:32]}  dxe5 {[%clk 0:02:21]} 14. Nd5 {[%clk 0:02:31]}  Nd4 {[%clk 0:02:17]} 15. Nxd4 {[%clk 0:02:30]}  cxd4 {[%clk 0:02:17]} 16. Bg5 {[%clk 0:02:30]}  Qd6 {[%clk 0:02:12]} 17. f4 {[%clk 0:02:21]}  Ng4 {[%clk 0:02:08]} 18. Be7 {[%clk 0:02:10]}  Qd7 {[%clk 0:02:06]} 19. Bxf8 {[%clk 0:02:08]}  Kxf8 {[%clk 0:02:05]} 20. f5 {[%clk 0:02:05]}  Kg8 {[%clk 0:01:54]} 21. Bh3 {[%clk 0:01:57]}  gxf5 {[%clk 0:01:53]} 22. Rxf5 {[%clk 0:01:53]}  Nh6 {[%clk 0:01:52]} 23. Qxh5 {[%clk 0:01:19]}  Nxf5 {[%clk 0:01:52]} 24. Bxf5 {[%clk 0:01:20]}  Qd6 {[%clk 0:01:52]} 25. Qh7+ {[%clk 0:01:03]}  Kf8 {[%clk 0:01:51]} 26. Rf1 {[%clk 0:01:04]}  Qh6 {[%clk 0:01:45]} 27. Qxh6 {[%clk 0:00:53]}  Bxh6 {[%clk 0:01:45]} 28. g4 {[%clk 0:00:54]}  Bxf5 {[%clk 0:01:15]} 29. Rxf5 {[%clk 0:00:45]}  Rc8 {[%clk 0:01:15]} 30. g5 {[%clk 0:00:40]}  Bg7 {[%clk 0:01:11]} 31. b3 {[%clk 0:00:41]}  b5 {[%clk 0:01:10]} 32. h5 {[%clk 0:00:29]}  bxc4 {[%clk 0:01:09]} 33. bxc4 {[%clk 0:00:30]}  Rxc4 {[%clk 0:01:08]} 34. h6 {[%clk 0:00:30]}  d3 {[%clk 0:00:56]} 35. hxg7+ {[%clk 0:00:20]}  Kxg7 {[%clk 0:00:57]} 36. Kf2 {[%clk 0:00:21]}  Rxe4 {[%clk 0:00:54]} 37. Nc3 {[%clk 0:00:02]}  Rc4 {[%clk 0:00:50]} 38. Nd1 {[%clk 0:00:02]}  Re4 {[%clk 0:00:37]} 39. Ne3 {[%clk 0:00:02]}  d2 {[%clk 0:00:36]} 40. Rf3 {[%clk 0:00:01]}  Rxe3 {[%clk 0:00:36]} 41. Kxe3 {[%clk 0:00:02]}  d1=Q {[%clk 0:00:36]} 0-1


[Site "https://www.chess.com"]

[Event "Titled Tuesday Blitz October 18 Late 2022"]
[White "Drost, Peter"]
[Black "Souleidis, Georgios"]
[WhiteFideId "1017896"]
[BlackFideId "4206827"]
[WhiteElo "2388"]
[BlackElo "2401"]
[Result "1-0"]
[Round "11"]
[TimeControl "180+1"]
[Date "2022.10.19"]
[WhiteClock "0:00:18"]
[BlackClock "0:00:02"]

1. e4 {[%clk 0:03:00]}  c5 {[%clk 0:02:11]} 2. Nf3 {[%clk 0:03:00]}  e6 {[%clk 0:02:11]} 3. d4 {[%clk 0:03:00]}  cxd4 {[%clk 0:02:12]} 4. Nxd4 {[%clk 0:03:01]}  Nf6 {[%clk 0:02:12]} 5. Nc3 {[%clk 0:03:00]}  Nc6 {[%clk 0:02:12]} 6. Nxc6 {[%clk 0:02:56]}  bxc6 {[%clk 0:02:13]} 7. e5 {[%clk 0:02:56]}  Nd5 {[%clk 0:02:13]} 8. Ne4 {[%clk 0:02:57]}  Qc7 {[%clk 0:02:12]} 9. f4 {[%clk 0:02:57]}  Qb6 {[%clk 0:02:12]} 10. c4 {[%clk 0:02:58]}  Ne3 {[%clk 0:02:12]} 11. Qd3 {[%clk 0:02:41]}  Bb4+ {[%clk 0:02:11]} 12. Ke2 {[%clk 0:02:36]}  Nxf1 {[%clk 0:01:56]} 13. Rxf1 {[%clk 0:02:35]}  Ba6 {[%clk 0:01:55]} 14. Be3 {[%clk 0:02:20]}  Qb8 {[%clk 0:01:29]} 15. Rf3 {[%clk 0:02:10]}  O-O {[%clk 0:01:13]} 16. Nf6+ {[%clk 0:01:42]}  gxf6 {[%clk 0:01:12]} 17. exf6 {[%clk 0:01:42]}  d5 {[%clk 0:00:43]} 18. b3 {[%clk 0:01:18]}  dxc4 {[%clk 0:00:41]} 19. bxc4 {[%clk 0:00:49]}  Rd8 {[%clk 0:00:19]} 20. Rg3+ {[%clk 0:00:37]}  Kh8 {[%clk 0:00:19]} 21. Qe4 {[%clk 0:00:25]}  Bf8 {[%clk 0:00:18]} 22. Rb1 {[%clk 0:00:21]}  Qd6 {[%clk 0:00:16]} 23. Rh3 {[%clk 0:00:20]}  h6 {[%clk 0:00:16]} 24. f5 {[%clk 0:00:20]}  exf5 {[%clk 0:00:12]} 25. Qxf5 {[%clk 0:00:19]}  Bxc4+ {[%clk 0:00:11]} 26. Kf2 {[%clk 0:00:19]}  Bd3 {[%clk 0:00:07]} 27. Bxh6 {[%clk 0:00:19]}  Qd4+ {[%clk 0:00:02]} 28. Be3+ {[%clk 0:00:18]} 1-0


[Site "https://www.chess.com"]